fUST/lending_fUST_20250705
["ID","MTS","AMOUNT","RATE_DAILY","PERIOD"]
[369801783,1751728247211,-460.0,0.00019452,2]
[369801786,1751728247221,-625.41,0.00019452,2]
[369801788,1751728247231,-460.0,0.00019452,2]
[369801790,1751728247240,-460.0,0.00019452,2]
[369801791,1751728247249,-614.67,0.00019452,2]
[369801794,1751728247259,-1363.67,0.00019452,2]
[369801796,1751728247268,-917.21,0.00019452,2]
[369801798,1751728247278,-1778.82,0.00019452,2]
[369801800,1751728247288,-1172.89,0.00019452,2]
[369801802,1751728247297,-460.0,0.00019452,2]
[369801804,1751728247306,-460.0,0.00019452,2]
[369801806,1751728247315,-722.29,0.00019452,2]
[369801808,1751728247324,-460.0,0.00019452,2]
[369801810,1751728247333,-500.0,0.00019452,2]
[369801812,1751728247342,-501.42420276,0.00019473,2]
[369801814,1751728247351,-501.14347341,0.00019473,2]
[369801816,1751728247360,-500.0,0.00019473,2]
[369801818,1751728247369,-500.0,0.00019473,2]
[369801819,1751728247379,-610.47070985,0.00019473,2]
[369801821,1751728247391,-500.0,0.00019473,2]
[369801824,1751728247402,-500.0,0.00019473,2]
[369801826,1751728247415,-160.15683522,0.00019473,2]
[369801827,1751728247425,-500.0,0.00019473,2]
[369801830,1751728247439,-500.0,0.00019473,2]
[369801832,1751728247449,-500.0,0.00019473,2]
[369801833,1751728247459,-500.0,0.00019473,2]
[369801835,1751728247469,-500.0,0.00019473,2]
[369801838,1751728247478,-500.0,0.00019473,2]
[369801839,1751728247488,-151.0,0.00019473,2]
[369801842,1751728247497,-151.0,0.00019473,2]
[369801844,1751728247507,-172.303868,0.00019473,2]
[369801845,1751728247517,-261.545633,0.00019473,2]
[369801848,1751728247527,-500.0,0.0001948,2]
[369801850,1751728247537,-645.10804827,0.00019489,2]
[369801852,1751728247546,-151.0,0.000195,2]
[369801854,1751728247557,-500.0,0.00019507,2]
[369801856,1751728247566,-500.0,0.00019535,2]
[369801858,1751728247576,-500.0,0.00019562,2]
[369801860,1751728247586,-500.0,0.00019589,2]
[369801862,1751728247595,-667.794048,0.00019599,2]
[369801864,1751728247605,-151.0,0.000196,2]
[369801866,1751728247614,-151.0,0.000196,2]
[369801868,1751728247624,-243.0,0.00019617,2]
[369801870,1751728247634,-645.10804827,0.00019695,2]
[369801872,1751728247643,-151.0,0.000197,2]
[369801874,1751728247652,-151.0,0.000197,2]
[369801876,1751728247662,-151.0,0.00019721,2]
[369801878,1751728247671,-151.0,0.00019721,2]
[369801880,1751728247681,-151.0,0.00019726,2]
[369801882,1751728247691,-151.0,0.00019726,2]
[369801884,1751728247702,-460.0,0.00019726,2]
[369801886,1751728247712,-460.0,0.00019726,2]
[369801888,1751728247721,-151.0,0.00019726,2]
[369801890,1751728247730,-460.0,0.00019726,2]
[369801892,1751728247740,-460.0,0.00019726,2]
[369801895,1751728247751,-460.0,0.00019726,2]
[369801897,1751728247762,-460.0,0.00019726,2]
[369801899,1751728247771,-460.0,0.00019726,2]
[369801901,1751728247781,-460.0,0.00019726,2]
[369801903,1751728247792,-460.0,0.00019726,2]
[369801905,1751728247801,-151.0,0.00019726,2]
[369801907,1751728247811,-151.0,0.00019726,2]
[369801909,1751728247821,-151.0,0.00019726,2]
[369801911,1751728247831,-151.0,0.00019726,2]
[369801913,1751728247841,-460.0,0.00019726,2]
[369801915,1751728247850,-156.827736,0.00019726,2]
[369801917,1751728247860,-156.827736,0.00019726,2]
[369801919,1751728247870,-460.0,0.00019726,2]
[369801921,1751728247880,-460.0,0.00019726,2]
[369801923,1751728247892,-460.0,0.00019726,2]
[369801925,1751728247901,-460.0,0.00019726,2]
[369801927,1751728247911,-460.0,0.00019726,2]
[369801929,1751728247921,-460.0,0.00019726,2]
[369801931,1751728247931,-460.0,0.00019726,2]
[369801934,1751728247941,-468.87,0.00019726,2]
[369801936,1751728247950,-556.22,0.00019726,2]
[369801938,1751728247960,-842.32,0.00019726,2]
[369801940,1751728247969,-460.0,0.00019726,2]
[369801942,1751728247979,-460.0,0.00019726,2]
[369801944,1751728247988,-594.96,0.00019726,2]
[369801946,1751728247997,-460.0,0.00019726,2]
[369801948,1751728248007,-365.40663386,0.00019726,2]
[369801950,1751728248017,-460.0,0.00019726,2]
[369801952,1751728248026,-460.0,0.00019726,2]
[369801954,1751728248036,-1198.12,0.00019726,2]
[369801956,1751728248046,-460.0,0.00019726,2]
[369801958,1751728248055,-460.0,0.00019726,2]
[369801960,1751728248065,-460.0,0.00019726,2]
[369801962,1751728248075,-460.0,0.00019726,2]
[369801964,1751728248085,-460.0,0.00019726,2]
[369801966,1751728248095,-1385.11,0.00019726,2]
[369801968,1751728248105,-460.0,0.00019726,2]
[369801970,1751728248115,-212.41672188,0.00019726,2]
[369801972,1751728248126,-151.0,0.00019726,2]
[369801974,1751728248135,-151.0,0.00019726,2]
[369801976,1751728248145,-151.0,0.00019726,2]
[369801978,1751728248155,-547.64,0.00019726,2]
[369801981,1751728248165,-727.821988,0.00019726,2]
[369801983,1751728248175,-727.821988,0.00019726,2]
[369801985,1751728248186,-727.821988,0.00019726,2]
[369801986,1751728248195,-727.821988,0.00019726,2]
[369801987,1751728248205,-727.821988,0.00019726,2]
[369801988,1751728248215,-727.821988,0.00019726,2]
[369801989,1751728248226,-548.64,0.00019726,2]
[369801990,1751728248235,-460.0,0.00019726,2]
[369801991,1751728248245,-915.95,0.00019726,2]
[369801992,1751728248255,-467.37,0.00019726,2]
[369801993,1751728248265,-151.0,0.00019726,2]
[369801994,1751728248275,-151.0,0.00019726,2]
[369801995,1751728248285,-151.0,0.00019726,2]
[369801996,1751728248295,-460.0,0.00019726,2]
[369801997,1751728248304,-460.0,0.00019726,2]
[369801998,1751728248314,-460.0,0.00019726,2]
[369801999,1751728248323,-460.0,0.00019726,2]
[369802000,1751728248333,-460.0,0.00019726,2]
[369802001,1751728248343,-460.0,0.00019726,2]
[369802002,1751728248352,-529.89902784,0.00019726,2]
[369802003,1751728248362,-460.0,0.00019726,2]
[369802004,1751728248372,-460.0,0.00019726,2]
[369802005,1751728248382,-460.0,0.00019726,2]
[369802006,1751728248392,-460.0,0.00019726,2]
[369802007,1751728248402,-460.0,0.00019726,2]
[369802008,1751728248412,-460.0,0.00019726,2]
[369802009,1751728248422,-548.62,0.00019726,2]
[369802010,1751728248434,-603.82,0.00019726,2]
[369802011,1751728248445,-460.0,0.00019726,2]
[369802012,1751728248455,-214.25283424,0.00019726,2]
[369802013,1751728248464,-460.0,0.00019726,2]
[369802014,1751728248474,-460.0,0.00019726,2]
[369802015,1751728248485,-521.7,0.00019726,2]
[369802016,1751728248495,-473.71,0.00019726,2]
[369802017,1751728248504,-460.0,0.00019726,2]
[369802018,1751728248513,-460.0,0.00019726,2]
[369802019,1751728248523,-544.23,0.00019726,2]
[369802020,1751728248533,-460.0,0.00019726,2]
[369802021,1751728248543,-460.0,0.00019726,2]
[369802022,1751728248553,-460.0,0.00019726,2]
[369802023,1751728248563,-460.0,0.00019726,2]
[369802024,1751728248573,-460.0,0.00019726,2]
[369802025,1751728248583,-460.0,0.00019726,2]
[369802026,1751728248594,-319.80285572,0.00019726,2]
[369802027,1751728248605,-460.0,0.00019726,2]
[369802028,1751728248615,-460.0,0.00019726,2]
[369802029,1751728248625,-640.81,0.00019726,2]
[369802030,1751728248635,-482.9,0.00019726,2]
[369802031,1751728248644,-460.0,0.00019726,2]
[369802032,1751728248654,-460.0,0.00019726,2]
[369802033,1751728248664,-1173.15,0.00019726,2]
[369802034,1751728248674,-511.43,0.00019726,2]
[369802035,1751728248684,-829.08,0.00019726,2]
[369802036,1751728248694,-818.45,0.00019726,2]
[369802037,1751728248704,-460.0,0.00019726,2]
[369802038,1751728248714,-151.0,0.00019726,2]
[369802039,1751728248724,-151.0,0.00019726,2]
[369802040,1751728248734,-297.627364,0.00019726,2]
[369802041,1751728248743,-460.0,0.00019726,2]
[369802042,1751728248753,-460.0,0.00019726,2]
[369802043,1751728248762,-460.0,0.00019726,2]
[369802044,1751728248772,-460.0,0.00019726,2]
[369802045,1751728248782,-460.0,0.00019726,2]
[369802046,1751728248792,-460.0,0.00019726,2]
[369802047,1751728248802,-460.0,0.00019726,2]
[369802048,1751728248811,-460.0,0.00019726,2]
[369802049,1751728248821,-464.34,0.00019726,2]
[369802050,1751728248831,-460.0,0.00019726,2]
[369802051,1751728248841,-460.0,0.00019726,2]
[369802052,1751728248851,-460.0,0.00019726,2]
[369802053,1751728248860,-605.44,0.00019726,2]
[369802054,1751728248870,-460.0,0.00019726,2]
[369802055,1751728248880,-508.49,0.00019726,2]
[369802056,1751728248890,-477.38,0.00019726,2]
[369802057,1751728248899,-460.0,0.00019726,2]
[369802058,1751728248909,-460.0,0.00019726,2]
[369802059,1751728248919,-460.0,0.00019726,2]
[369802060,1751728248928,-602.95636315,0.00019726,2]
[369802061,1751728248938,-460.0,0.00019726,2]
[369802062,1751728248948,-460.0,0.00019726,2]
[369802063,1751728248958,-460.0,0.00019726,2]
[369802064,1751728248967,-460.0,0.00019726,2]
[369802065,1751728248977,-160.0,0.00019726,2]
[369802066,1751728248987,-460.0,0.00019726,2]
[369802067,1751728248997,-460.0,0.00019726,2]
[369802068,1751728249017,-460.0,0.00019726,2]
[369802069,1751728249027,-460.0,0.00019726,2]
[369802070,1751728249037,-460.0,0.00019726,2]
[369802071,1751728249046,-1746.47,0.00019726,2]
[369802072,1751728249056,-460.0,0.00019726,2]
[369802073,1751728249066,-460.0,0.00019726,2]
[369802074,1751728249076,-460.0,0.00019726,2]
[369802075,1751728249085,-460.0,0.00019726,2]
[369802076,1751728249095,-460.0,0.00019726,2]
[369802077,1751728249105,-460.0,0.00019726,2]
[369802078,1751728249115,-1036.02,0.00019726,2]
[369802079,1751728249125,-662.47,0.00019726,2]
[369802080,1751728249135,-449.63948808,0.00019726,2]
[369802081,1751728249145,-460.0,0.00019726,2]
[369802082,1751728249155,-460.0,0.00019726,2]
[369802083,1751728249164,-3267.76,0.00019726,2]
[369802084,1751728249174,-460.0,0.00019726,2]
[369802085,1751728249184,-2133.56,0.00019726,2]
[369802086,1751728249194,-504.42756139,0.00019726,2]
[369802087,1751728249204,-3079.9,0.00019726,2]
[369802088,1751728249213,-460.0,0.00019726,2]
[369802089,1751728249223,-736.05,0.00019726,2]
[369802090,1751728249233,-460.0,0.00019726,2]
[369802091,1751728249243,-2623.93,0.00019726,2]
[369802092,1751728249253,-460.0,0.00019726,2]
[369802093,1751728249263,-460.0,0.00019726,2]
[369802094,1751728249273,-5899.19,0.00019726,2]
[369802095,1751728249283,-1275.43,0.00019726,2]
[369802096,1751728249293,-1685.45,0.00019726,2]
[369802097,1751728249302,-460.0,0.00019726,2]
[369802098,1751728249312,-528.11941891,0.00019726,2]
[369802099,1751728249322,-460.0,0.00019726,2]
[369802100,1751728249332,-460.0,0.00019726,2]
[369802101,1751728249341,-460.0,0.00019726,2]
[369802102,1751728249351,-460.0,0.00019726,2]
[369802103,1751728249361,-604.25,0.00019726,2]
[369802104,1751728249371,-460.0,0.00019726,2]
[369802105,1751728249381,-493.35,0.00019726,2]
[369802106,1751728249390,-460.0,0.00019726,2]
[369802107,1751728249400,-5891.46,0.00019726,2]
[369802108,1751728249410,-1568.05,0.00019726,2]
[369802109,1751728249421,-843.99,0.00019726,2]
[369802110,1751728249431,-460.0,0.00019726,2]
[369802111,1751728249444,-515.67,0.00019726,2]
[369802112,1751728249456,-1320.23,0.00019726,2]
[369802113,1751728249465,-460.0,0.00019726,2]
[369802114,1751728249475,-460.0,0.00019726,2]
[369802115,1751728249485,-746.4,0.00019726,2]
[369802116,1751728249495,-460.0,0.00019726,2]
[369802117,1751728249505,-460.0,0.00019726,2]
[369802118,1751728249517,-1048.55,0.00019726,2]
[369802119,1751728249529,-961.57,0.00019726,2]
[369802120,1751728249541,-547.57,0.00019726,2]
[369802121,1751728249551,-460.0,0.00019726,2]
[369802122,1751728249561,-460.0,0.00019726,2]
[369802123,1751728249571,-1389.1,0.00019726,2]
[369802124,1751728249581,-540.95,0.00019726,2]
[369802125,1751728249591,-460.0,0.00019726,2]
[369802126,1751728249602,-555.14,0.00019726,2]
[369802127,1751728249612,-460.0,0.00019726,2]
[369802128,1751728249622,-494.13,0.00019726,2]
[369802129,1751728249632,-460.0,0.00019726,2]
[369802130,1751728249642,-460.0,0.00019726,2]
[369802131,1751728249651,-460.0,0.00019726,2]
[369802132,1751728249662,-460.0,0.00019726,2]
[369802133,1751728249672,-507.25,0.00019726,2]
[369802134,1751728249825,-460.0,0.00019726,2]
[369802135,1751728249856,-460.0,0.00019726,2]
[369802136,1751728249866,-560.72296764,0.00019726,2]
[369802137,1751728249876,-2127.43,0.00019726,2]
[369802138,1751728249886,-482.52,0.00019726,2]
[369802139,1751728249895,-516.28,0.00019726,2]
[369802140,1751728249904,-460.0,0.00019726,2]
[369802141,1751728249914,-2967.2,0.00019726,2]
[369802142,1751728249923,-460.0,0.00019726,2]
[369802143,1751728249933,-460.0,0.00019726,2]
[369802144,1751728249942,-460.0,0.00019726,2]
[369802145,1751728249952,-460.0,0.00019726,2]
[369802146,1751728249963,-460.0,0.00019726,2]
[369802147,1751728249972,-460.0,0.00019726,2]
[369802148,1751728249982,-460.0,0.00019726,2]
[369802149,1751728249991,-1831.94,0.00019726,2]
[369802150,1751728250001,-460.0,0.00019726,2]
[369802151,1751728250010,-1837.2,0.00019726,2]
[369802152,1751728250020,-647.19,0.00019726,2]
[369802153,1751728250029,-4472.86,0.00019726,2]
[369802154,1751728250039,-460.0,0.00019726,2]
[369802155,1751728250049,-460.0,0.00019726,2]
[369802156,1751728250059,-1172.33,0.00019726,2]
[369802157,1751728250069,-460.0,0.00019726,2]
[369802158,1751728250078,-460.0,0.00019726,2]
[369802159,1751728250087,-761.67,0.00019726,2]
[369802160,1751728250097,-460.0,0.00019726,2]
[369802161,1751728250106,-925.15,0.00019726,2]
[369802162,1751728250116,-460.0,0.00019726,2]
[369802163,1751728250125,-1652.4480441,0.00019726,2]
[369802173,1751728250351,-1240.4019559,0.00019726,2]
[369802174,1751728250360,-570.44,0.00019726,2]
[369802175,1751728250369,-460.0,0.00019726,2]
[369802176,1751728250379,-734.31,0.00019726,2]
[369802177,1751728250388,-966.89,0.00019726,2]
[369802178,1751728250397,-460.0,0.00019726,2]
[369802179,1751728250407,-592.29,0.00019726,2]
[369802180,1751728250416,-460.0,0.00019726,2]
[369802181,1751728250425,-203.046512,0.00019726,2]
[369802182,1751728250437,-151.37044436,0.00019726,2]
[369802183,1751728250449,-51.67606764,0.00019726,2]
[369802184,1751728250459,-460.0,0.00019726,2]
[369802185,1751728250468,-203.046512,0.00019726,2]
[369802186,1751728250477,-460.0,0.00019726,2]
[369802187,1751728250486,-330.98234547,0.00019726,2]
[369802188,1751728250496,-20.98454788,0.00019726,2]
[369802189,1751728250507,-439.01545212,0.00019726,2]
[369802190,1751728250517,-460.0,0.00019726,2]
[369802191,1751728250527,-460.0,0.00019726,2]
[369802192,1751728250536,-203.046512,0.00019726,2]
[369802193,1751728250546,-412.436011,0.00019726,2]
[369802194,1751728250555,-203.046512,0.00019726,2]
[369802195,1751728250565,-203.046502,0.00019726,2]
[369802196,1751728250575,-460.0,0.00019726,2]
[369802197,1751728250585,-1002.98,0.00019726,2]
[369802198,1751728250594,-460.0,0.00019726,2]
[369802199,1751728250604,-3321.82,0.00019726,2]
[369802200,1751728250614,-128.80496839,0.00019726,2]
[369802201,1751728250630,-331.19503161,0.00019726,2]
[369802202,1751728250639,-913.47,0.00019726,2]
[369802203,1751728250648,-460.0,0.00019726,2]
[369802204,1751728250658,-460.0,0.00019726,2]
[369802205,1751728250667,-1667.94,0.00019726,2]
[369802206,1751728250676,-2089.01,0.00019726,2]
[369802207,1751728250686,-829.18,0.00019726,2]
[369802208,1751728250695,-460.0,0.00019726,2]
[369802209,1751728250704,-460.0,0.00019726,2]
[369802210,1751728250714,-460.0,0.00019726,2]
[369802212,1751728250724,-460.0,0.00019726,2]
[369802214,1751728250733,-7380.19,0.00019726,2]
[369802216,1751728250743,-3405.3,0.00019726,2]
[369802218,1751728250752,-1123.76,0.00019726,2]
[369802220,1751728250762,-460.0,0.00019726,2]
[369802222,1751728250771,-2331.28,0.00019726,2]
[369802224,1751728250781,-460.0,0.00019726,2]
[369802226,1751728250791,-1174.15,0.00019726,2]
[369802228,1751728250801,-771.32,0.00019726,2]
[369802230,1751728250811,-460.0,0.00019726,2]
[369802232,1751728250821,-3045.74,0.00019726,2]
[369802234,1751728250830,-460.0,0.00019726,2]
[369802236,1751728250840,-584.13,0.00019726,2]
[369802238,1751728250849,-460.0,0.00019726,2]
[369802240,1751728250859,-612.38,0.00019726,2]
[369802242,1751728250868,-1059.14,0.00019726,2]
[369802244,1751728250877,-151.0,0.00019726,2]
[369802246,1751728250886,-151.0,0.00019726,2]
[369802248,1751728250896,-151.0,0.00019726,2]
[369802250,1751728250905,-460.0,0.00019726,2]
[369802252,1751728250915,-8034.08,0.00019726,2]
[369802254,1751728250924,-460.0,0.00019726,2]
[369802256,1751728250933,-625.41,0.00019726,2]
[369802258,1751728250943,-460.0,0.00019726,2]
[369802260,1751728250953,-460.0,0.00019726,2]
[369802262,1751728250962,-614.67,0.00019726,2]
[369802264,1751728250972,-1363.67,0.00019726,2]
[369802266,1751728250981,-917.21,0.00019726,2]
[369802268,1751728250992,-1778.82,0.00019726,2]
[369802270,1751728251001,-1172.89,0.00019726,2]
[369802272,1751728251011,-460.0,0.00019726,2]
[369802274,1751728251023,-325.54243533,0.00019726,2]
[369802276,1751728251033,-722.29,0.00019726,2]
[369802278,1751728251043,-460.0,0.00019726,2]
[369802280,1751728251053,-307.1232452,0.00019773,2]
[369802281,1751728251062,-500.65520771,0.00019773,2]
[369802283,1751728251073,-500.0,0.00019773,2]
[369802285,1751728251082,-500.0,0.00019773,2]
[369802288,1751728251092,-500.0,0.00019773,2]
[369802289,1751728251102,-151.0,0.000198,2]
[369802291,1751728251112,-151.0,0.000198,2]
[369802293,1751728251121,-151.0,0.000198,2]
[369802295,1751728251131,-509.0,0.00019841,2]
[369802297,1751728251140,-420.0,0.00019889,2]
[369802299,1751728251151,-509.0,0.00019889,2]
[369802301,1751728251161,-151.0,0.000199,2]
[369802303,1751728251171,-151.0,0.000199,2]
[369802305,1751728251180,-645.10804827,0.000199,2]
[369802307,1751728251190,-2408.40498619,0.000199,2]
[369802309,1751728251200,-509.0,0.00019909,2]
[369802311,1751728251210,-509.0,0.00019952,2]
[369802313,1751728251219,-509.0,0.00019971,2]
[369802315,1751728251229,-151.0,0.00019972,2]
[369802317,1751728251238,-900.0,0.0002,3]
[369802319,1751728251248,-151.0,0.0002,2]
[369802322,1751728251259,-151.0,0.0002,2]
[369802324,1751728251269,-460.0,0.0002,2]
[369802326,1751728251278,-460.0,0.0002,2]
[369802327,1751728251289,-460.0,0.0002,2]
[369802329,1751728251298,-460.0,0.0002,2]
[369802332,1751728251309,-460.0,0.0002,2]
[369802334,1751728251319,-460.0,0.0002,2]
[369802335,1751728251329,-460.0,0.0002,2]
[369802337,1751728251339,-178.649896,0.0002,2]
[369802338,1751728251348,-151.0,0.0002,2]
[369802340,1751728251358,-460.0,0.0002,2]
[369802342,1751728251367,-156.827736,0.0002,2]
[369802344,1751728251377,-156.827736,0.0002,2]
[369802346,1751728251387,-460.0,0.0002,2]
[369802348,1751728251396,-460.0,0.0002,2]
[369802350,1751728251406,-460.0,0.0002,2]
[369802352,1751728251415,-460.0,0.0002,2]
[369802354,1751728251425,-460.0,0.0002,2]
[369802356,1751728251438,-460.0,0.0002,2]
[369802358,1751728251447,-460.0,0.0002,2]
[369802360,1751728251457,-468.87,0.0002,2]
[369802362,1751728251468,-556.22,0.0002,2]
[369802364,1751728251477,-842.32,0.0002,2]
[369802366,1751728251487,-460.0,0.0002,2]
[369802368,1751728251496,-460.0,0.0002,2]
[369802370,1751728251506,-460.0,0.0002,2]
[369802371,1751728251517,-460.0,0.0002,2]
[369802372,1751728251527,-460.0,0.0002,2]
[369802373,1751728251537,-1198.12,0.0002,2]
[369802374,1751728251546,-460.0,0.0002,2]
[369802375,1751728251556,-460.0,0.0002,2]
[369802376,1751728251566,-460.0,0.0002,2]
[369802377,1751728251575,-460.0,0.0002,2]
[369802378,1751728251585,-1385.11,0.0002,2]
[369802379,1751728251594,-460.0,0.0002,2]
[369802380,1751728251603,-188.691136,0.0002,2]
[369802381,1751728251613,-547.64,0.0002,2]
[369802382,1751728251622,-727.821988,0.0002,2]
[369802383,1751728251632,-727.821988,0.0002,2]
[369802384,1751728251642,-727.821988,0.0002,2]
[369802385,1751728251652,-727.821988,0.0002,2]
[369802386,1751728251662,-727.821988,0.0002,2]
[369802387,1751728251673,-727.821986,0.0002,2]
[369802388,1751728251683,-548.64,0.0002,2]
[369802389,1751728251692,-460.0,0.0002,2]
[369802390,1751728251702,-915.95,0.0002,2]
[369802391,1751728251711,-151.0,0.0002,2]
[369802392,1751728251720,-460.0,0.0002,2]
[369802393,1751728251730,-460.0,0.0002,2]
[369802394,1751728251740,-460.0,0.0002,2]
[369802395,1751728251749,-460.0,0.0002,2]
[369802396,1751728251759,-460.0,0.0002,2]
[369802397,1751728251768,-460.0,0.0002,2]
[369802398,1751728251778,-460.0,0.0002,2]
[369802399,1751728251787,-460.0,0.0002,2]
[369802400,1751728251797,-465.32935796,0.0002,2]
[369802401,1751728251806,-460.0,0.0002,2]
[369802402,1751728251816,-460.0,0.0002,2]
[369802403,1751728251825,-460.0,0.0002,2]
[369802404,1751728251835,-460.0,0.0002,2]
[369802405,1751728251844,-460.0,0.0002,2]
[369802406,1751728251854,-473.71,0.0002,2]
[369802407,1751728251863,-460.0,0.0002,2]
[369802408,1751728251873,-460.0,0.0002,2]
[369802409,1751728251882,-544.23,0.0002,2]
[369802410,1751728251892,-460.0,0.0002,2]
[369802411,1751728251900,-460.0,0.0002,2]
[369802412,1751728251910,-460.0,0.0002,2]
[369802413,1751728251920,-460.0,0.0002,2]
[369802414,1751728251930,-460.0,0.0002,2]
[369802415,1751728251939,-460.0,0.0002,2]
[369802416,1751728251950,-504.29,0.0002,2]
[369802417,1751728251961,-460.0,0.0002,2]
[369802418,1751728251970,-640.81,0.0002,2]
[369802419,1751728251981,-460.0,0.0002,2]
[369802420,1751728251990,-460.0,0.0002,2]
[369802421,1751728252000,-1173.15,0.0002,2]
[369802422,1751728252009,-511.43,0.0002,2]
[369802424,1751728252019,-829.08,0.0002,2]
[369802426,1751728252029,-818.45,0.0002,2]
[369802430,1751728252088,-460.0,0.0002,2]
[369802431,1751728252097,-460.0,0.0002,2]
[369802432,1751728252107,-460.0,0.0002,2]
[369802433,1751728252116,-460.0,0.0002,2]
[369802434,1751728252125,-460.0,0.0002,2]
[369802435,1751728252135,-460.0,0.0002,2]
[369802436,1751728252144,-460.0,0.0002,2]
[369802437,1751728252153,-460.0,0.0002,2]
[369802438,1751728252163,-460.0,0.0002,2]
[369802439,1751728252172,-332.16239496,0.0002,2]
[369802440,1751728252181,-605.44,0.0002,2]
[369802441,1751728252190,-460.0,0.0002,2]
[369802442,1751728252200,-477.38,0.0002,2]
[369802443,1751728252209,-460.0,0.0002,2]
[369802444,1751728252219,-460.0,0.0002,2]
[369802445,1751728252228,-460.0,0.0002,2]
[369802446,1751728252237,-460.0,0.0002,2]
[369802448,1751728252246,-460.0,0.0002,2]
[369802449,1751728252256,-460.0,0.0002,2]
[369802450,1751728252266,-460.0,0.0002,2]
[369802451,1751728252275,-530.96,0.0002,2]
[369802452,1751728252284,-460.0,0.0002,2]
[369802454,1751728252294,-460.0,0.0002,2]
[369802457,1751728252305,-460.0,0.0002,2]
[369802458,1751728252314,-1746.47,0.0002,2]
[369802460,1751728252323,-460.0,0.0002,2]
[369802462,1751728252332,-460.0,0.0002,2]
[369802463,1751728252342,-460.0,0.0002,2]
[369802464,1751728252351,-460.0,0.0002,2]
[369802465,1751728252361,-460.0,0.0002,2]
[369802466,1751728252371,-460.0,0.0002,2]
[369802467,1751728252380,-1036.02,0.0002,2]
[369802468,1751728252389,-662.47,0.0002,2]
[369802469,1751728252400,-604.54658902,0.0002,2]
[369802470,1751728252409,-460.0,0.0002,2]
[369802471,1751728252419,-3267.76,0.0002,2]
[369802472,1751728252429,-460.0,0.0002,2]
[369802473,1751728252444,-2133.56,0.0002,2]
[369802474,1751728252454,-3079.9,0.0002,2]
[369802475,1751728252463,-460.0,0.0002,2]
[369802476,1751728252475,-736.05,0.0002,2]
[369802477,1751728252484,-2623.93,0.0002,2]
[369802478,1751728252493,-460.0,0.0002,2]
[369802479,1751728252503,-460.0,0.0002,2]
[369802480,1751728252515,-5899.19,0.0002,2]
[369802481,1751728252525,-1275.43,0.0002,2]
[369802482,1751728252534,-1685.45,0.0002,2]
[369802483,1751728252544,-460.0,0.0002,2]
[369802484,1751728252553,-460.0,0.0002,2]